fUSD/lending_fUSD_20260426
["ID","MTS","AMOUNT","RATE_DAILY","PERIOD"]
[421143197,1777161086075,-300.0,0.00015987,2]
[421143198,1777161086084,-300.0,0.00015987,2]
[421143199,1777161086094,-300.0,0.00015987,2]
[421143200,1777161086104,-300.0,0.00015987,2]
[421143201,1777161086115,-300.0,0.00015987,2]
[421143202,1777161086124,-300.0,0.00015987,2]
[421143203,1777161086134,-300.0,0.00015987,2]
[421143204,1777161086144,-300.0,0.00015987,2]
[421143205,1777161086154,-266.0,0.00015987,2]
[421143206,1777161086164,-3088.05310447,0.00015999,2]
[421143207,1777161086174,-150.0,0.00016,2]
[421143208,1777161086184,-50000.0,0.00016,2]
[421143209,1777161086193,-162.24807931,0.00016,3]
[421143210,1777161086203,-200.0,0.00016,2]
[421143211,1777161086214,-190.0,0.00016001,2]
[421143212,1777161086223,-219.82366403,0.00016015,2]
[421143213,1777161086234,-555.55277778,0.00016027,2]
[421143214,1777161086243,-150.0,0.0001604,2]
[421143215,1777161086253,-300.0,0.00016059,2]
[421143216,1777161086263,-300.0,0.00016059,2]
[421143217,1777161086273,-300.0,0.00016059,2]
[421143218,1777161086283,-300.0,0.00016059,2]
[421143219,1777161086293,-300.0,0.00016059,2]
[421143220,1777161086303,-300.0,0.00016059,2]
[421143221,1777161086312,-300.0,0.00016059,2]
[421143222,1777161086322,-300.0,0.00016059,2]
[421143223,1777161086332,-256.0,0.00016059,2]
[421143224,1777161086341,-200.0,0.00016082,2]
[421143225,1777161086352,-200.0,0.00016082,2]
[421143226,1777161086362,-200.0,0.00016082,2]
[421143227,1777161086383,-200.0,0.00016082,2]
[421143228,1777161086401,-200.0,0.00016082,2]
[421143229,1777161086413,-200.0,0.00016082,2]
[421143230,1777161086424,-200.0,0.00016082,2]
[421143231,1777161086435,-242.0,0.00016082,2]
[421143232,1777161086447,-150.0,0.000161,2]
[421143233,1777161086458,-505.0,0.00016106,4]
[421143234,1777161086469,-9999.99,0.00016116,2]
[421143235,1777161086481,-350.0,0.00016164,2]
[421143236,1777161086492,-2664.73,0.000162,2]
[421143237,1777161086504,-3231.55,0.000162,2]
[421143238,1777161086515,-644.79446246,0.00016331,2]
[421143239,1777161086527,-747.8093786,0.00016331,2]
[421143240,1777161086538,-889.07,0.00016438,2]
[421143241,1777161086549,-1481.78,0.00016438,2]
[421143242,1777161086561,-185.14,0.00016438,2]
[421143243,1777161086572,-185.14,0.00016438,2]
[421143244,1777161086583,-1307.1,0.00016438,2]
[421143245,1777161086594,-2500.0,0.00016438,2]
[421143246,1777161086605,-2500.0,0.00016438,2]
[421143247,1777161086616,-2500.0,0.00016438,2]
[421143248,1777161086628,-2500.0,0.00016438,2]
[421143249,1777161086639,-2500.0,0.00016438,2]
[421143250,1777161086651,-2500.0,0.00016438,2]
[421143251,1777161086662,-2500.0,0.00016438,2]
[421143252,1777161086673,-2500.0,0.00016438,2]
[421143253,1777161086684,-2508.11010936,0.00016438,2]
[421143254,1777161086695,-150.0,0.00016438,2]
[421143255,1777161086706,-500.0,0.00016438,2]
[421143256,1777161086717,-500.0,0.00016438,2]
[421143257,1777161086727,-162.91361493,0.00016438,2]
[421143258,1777161086738,-500.0,0.00016438,2]
[421143259,1777161086750,-500.0,0.00016438,2]
[421143260,1777161086769,-500.0,0.00016438,2]
[421143261,1777161086781,-500.0,0.00016438,2]
[421143262,1777161086793,-500.0,0.00016438,2]
[421143263,1777161086806,-500.0,0.00016438,2]
[421143264,1777161086818,-163.96096506,0.00016438,2]
[421143265,1777161086830,-500.0,0.00016438,2]
[421143266,1777161086842,-500.0,0.00016438,2]
[421143267,1777161086854,-528.8191669,0.00016438,2]
[421143268,1777161086866,-500.0,0.00016438,2]
[421143269,1777161086879,-465.700475,0.00016438,2]
[421143270,1777161086891,-465.700475,0.00016438,2]
[421143271,1777161086904,-465.700475,0.00016438,2]
[421143272,1777161086917,-465.700475,0.00016438,2]
[421143273,1777161086928,-465.700475,0.00016438,2]
[421143274,1777161086941,-465.700475,0.00016438,2]
[421143275,1777161086953,-465.700475,0.00016438,2]
[421143276,1777161086965,-465.700475,0.00016438,2]
[421143277,1777161086976,-465.700475,0.00016438,2]
[421143278,1777161086989,-465.700475,0.00016438,2]
[421143279,1777161087001,-465.700475,0.00016438,2]
[421143280,1777161087013,-465.700475,0.00016438,2]
[421143281,1777161087026,-465.700475,0.00016438,2]
[421143282,1777161087038,-465.700475,0.00016438,2]
[421143283,1777161087051,-465.700475,0.00016438,2]
[421143284,1777161087063,-465.700475,0.00016438,2]
[421143285,1777161087075,-465.700475,0.00016438,2]
[421143286,1777161087087,-465.700475,0.00016438,2]
[421143287,1777161087100,-465.700475,0.00016438,2]
[421143288,1777161087112,-465.700471,0.00016438,2]
[421143289,1777161087123,-500.0,0.00016438,2]
[421143290,1777161087142,-500.0,0.00016438,2]
[421143291,1777161087155,-500.0,0.00016438,2]
[421143292,1777161087168,-500.0,0.00016438,2]
[421143293,1777161087180,-165.22605132,0.00016438,2]
[421143294,1777161087192,-500.0,0.00016438,2]
[421143295,1777161087204,-500.0,0.00016438,2]
[421143296,1777161087216,-500.0,0.00016438,2]
[421143297,1777161087227,-338.61399383,0.00016438,2]
[421143298,1777161087239,-500.0,0.00016438,2]
[421143299,1777161087250,-500.0,0.00016438,2]
[421143300,1777161087262,-500.0,0.00016438,2]
[421143301,1777161087274,-200.13006652,0.00016438,2]
[421143302,1777161087285,-500.0,0.00016438,2]
[421143303,1777161087297,-162.33149205,0.00016438,2]
[421143304,1777161087308,-500.0,0.00016438,2]
[421143305,1777161087319,-165.39586524,0.00016438,2]
[421143306,1777161087332,-500.0,0.00016438,2]
[421143307,1777161087343,-500.0,0.00016438,2]
[421143308,1777161087355,-500.0,0.00016438,2]
[421143309,1777161087367,-500.0,0.00016438,2]
[421143310,1777161087379,-160.76056824,0.00016438,2]
[421143311,1777161087391,-500.0,0.00016438,2]
[421143312,1777161087402,-520.25972277,0.00016438,2]
[421143313,1777161087414,-200.13006642,0.00016438,2]
[421143314,1777161087425,-500.0,0.00016438,2]
[421143315,1777161087436,-211.576012,0.00016438,2]
[421143316,1777161087447,-2243.188987,0.00016438,2]
[421143317,1777161087459,-2243.188987,0.00016438,2]
[421143318,1777161087469,-2243.188987,0.00016438,2]
[421143319,1777161087480,-2243.188987,0.00016438,2]
[421143320,1777161087491,-2243.188987,0.00016438,2]
[421143321,1777161087502,-2243.188987,0.00016438,2]
[421143322,1777161087518,-2243.188987,0.00016438,2]
[421143323,1777161087529,-2243.188987,0.00016438,2]
[421143324,1777161087541,-2243.188987,0.00016438,2]
[421143325,1777161087552,-2243.188987,0.00016438,2]
[421143326,1777161087563,-2243.188987,0.00016438,2]
[421143327,1777161087575,-2243.188987,0.00016438,2]
[421143328,1777161087586,-2243.188987,0.00016438,2]
[421143329,1777161087597,-2243.188987,0.00016438,2]
[421143330,1777161087608,-2243.188987,0.00016438,2]
[421143331,1777161087619,-500.0,0.00016438,2]
[421143332,1777161087630,-2243.188987,0.00016438,2]
[421143333,1777161087640,-2243.188987,0.00016438,2]
[421143334,1777161087651,-2243.188987,0.00016438,2]
[421143335,1777161087662,-2243.188987,0.00016438,2]
[421143336,1777161087672,-2243.188986,0.00016438,2]
[421143337,1777161087683,-475.46286753,0.00016438,2]
[421143338,1777161088302,-500.0,0.00016438,2]
[421143339,1777161088314,-500.0,0.00016438,2]
[421143340,1777161088325,-500.0,0.00016438,2]
[421143341,1777161088334,-500.0,0.00016438,2]
[421143342,1777161088344,-163.07723768,0.00016438,2]
[421143343,1777161088353,-500.0,0.00016438,2]
[421143344,1777161088363,-500.0,0.00016438,2]
[421143345,1777161088373,-500.0,0.00016438,2]
[421143346,1777161088383,-500.0,0.00016438,2]
[421143347,1777161088393,-153.00045006,0.00016438,2]
[421143348,1777161088403,-500.0,0.0001644,2]
[421143349,1777161088412,-500.0,0.0001644,2]
[421143350,1777161088422,-265.33,0.00016454,2]
[421143351,1777161088431,-478.08,0.00016468,2]
[421143352,1777161088442,-568.82,0.00016469,2]
[421143353,1777161088453,-2699.8,0.000165,2]
[421143354,1777161088463,-1905.71,0.000165,2]
[421143355,1777161088473,-64025.61358871,0.000165,2]
[421143356,1777161088482,-46439.58915878,0.000165,2]
[421143357,1777161088492,-6592.65604856,0.000165,2]
[421143358,1777161088502,-13019.329252,0.000165,2]
[421143359,1777161088512,-2000.0,0.000165,2]
[421143360,1777161088521,-2000.0,0.000165,2]
[421143361,1777161088531,-2000.0,0.000165,2]
[421143362,1777161088541,-2000.0,0.000165,2]
[421143363,1777161088552,-2000.0,0.000165,2]
[421143364,1777161088577,-2000.0,0.000165,2]
[421143365,1777161088591,-2000.0,0.000165,2]
[421143366,1777161088603,-2000.0,0.000165,2]
[421143367,1777161088614,-2000.0,0.000165,2]
[421143368,1777161088625,-2000.0,0.000165,2]
[421143369,1777161088635,-2000.0,0.000165,2]
[421143370,1777161088646,-2000.0,0.000165,2]
[421143371,1777161088656,-2000.0,0.000165,2]
[421143372,1777161088666,-2000.0,0.000165,2]
[421143373,1777161088677,-2000.0,0.000165,2]
[421143374,1777161088688,-2000.0,0.000165,2]
[421143375,1777161088699,-2000.0,0.000165,2]
[421143376,1777161088709,-2000.0,0.000165,2]
[421143377,1777161088720,-2000.0,0.000165,2]
[421143378,1777161088731,-2000.0,0.000165,2]
[421143379,1777161088741,-2000.0,0.000165,2]
[421143380,1777161088752,-2000.0,0.000165,2]
[421143381,1777161088763,-2000.0,0.000165,2]
[421143382,1777161088775,-625.77081244,0.000165,2]
[421143383,1777161088786,-195.34265549,0.000166,2]
[421143384,1777161088797,-200.0,0.000166,2]
[421143385,1777161088808,-10230.75407487,0.000166,2]
[421143386,1777161088820,-564.57820314,0.000166,2]
[421143387,1777161088831,-150.51237404,0.000166,2]
[421143388,1777161088842,-190.0,0.00016696,3]
[421143389,1777161088853,-232.0,0.00016702,2]
[421143390,1777161088864,-1244.0,0.00016702,2]
[421143391,1777161088875,-552.0,0.00016702,2]
[421143392,1777161088886,-459.0,0.00016702,2]
[421143393,1777161088896,-1307.1,0.00016712,2]
[421143394,1777161088907,-500.0,0.00016712,2]
[421143395,1777161088919,-500.0,0.00016712,2]
[421143396,1777161088930,-500.0,0.00016712,2]
[421143397,1777161088941,-500.0,0.00016712,2]
[421143398,1777161088959,-150.0,0.00016712,2]
[421143399,1777161088971,-300.0,0.00016712,2]
[421143400,1777161088984,-300.0,0.00016712,2]
[421143401,1777161088996,-450.0,0.00016712,2]
[421143402,1777161089008,-150.0,0.0001697,2]
[421143403,1777161089019,-150.0,0.0001697,2]
[421143404,1777161089032,-150.0,0.0001697,2]
[421143405,1777161089044,-150.0,0.0001697,2]
[421143406,1777161089056,-150.0,0.0001697,2]
[421143407,1777161089068,-229.0,0.0001697,2]
[421143408,1777161089081,-1307.1,0.00016986,2]
[421143409,1777161089092,-150.0,0.00016986,2]
[421143410,1777161089104,-288.2787796,0.00016986,2]
[421143411,1777161089116,-1000.0,0.00016986,2]
[421143412,1777161089129,-1000.0,0.00016986,2]
[421143413,1777161089141,-1000.0,0.00016986,2]
[421143414,1777161089153,-1000.0,0.00016986,2]
[421143415,1777161089166,-1000.0,0.00016986,2]
[421143416,1777161089178,-811.23860537,0.00016986,2]
[421143417,1777161089189,-181.50525331,0.00016986,2]
[421143418,1777161089202,-1000.0,0.00016986,2]
[421143419,1777161089214,-613.16960563,0.00016986,2]
[421143420,1777161089225,-1000.0,0.00016986,2]
[421143421,1777161089238,-1000.0,0.00016986,2]
[421143422,1777161089251,-1000.0,0.00016986,2]
[421143423,1777161089262,-1000.0,0.00016986,2]
[421143424,1777161089274,-1000.0,0.00016986,2]
[421143425,1777161089286,-1000.0,0.00016986,2]
[421143426,1777161089297,-669.79440304,0.00016986,2]
[421143427,1777161089309,-1000.0,0.00016986,2]
[421143428,1777161089320,-1000.0,0.00016986,2]
[421143429,1777161089338,-1000.0,0.00016986,2]
[421143430,1777161089349,-1105.72951047,0.00016986,2]
[421143431,1777161089361,-1000.0,0.00016986,2]
[421143432,1777161089372,-1000.0,0.00016986,2]
[421143433,1777161089385,-630.37811423,0.00016986,2]
[421143434,1777161089397,-387.8332055,0.00016986,2]
[421143435,1777161089409,-1000.0,0.00016986,2]
[421143436,1777161089421,-1000.0,0.00016986,2]
[421143437,1777161089432,-1000.0,0.00016986,2]
[421143438,1777161089444,-1000.0,0.00016986,2]
[421143439,1777161089456,-1000.0,0.00016986,2]
[421143440,1777161089468,-1000.0,0.00016986,2]
[421143441,1777161089480,-1000.0,0.00016986,2]
[421143442,1777161089492,-1000.0,0.00016986,2]
[421143443,1777161089505,-1000.0,0.00016986,2]
[421143444,1777161089516,-1000.0,0.00016986,2]
[421143445,1777161089528,-1000.0,0.00016986,2]
[421143446,1777161089540,-191.42706172,0.00016986,2]
[421143447,1777161089552,-1000.0,0.00016986,2]
[421143448,1777161089564,-150.0,0.00017,2]
[421143449,1777161089575,-150.0,0.00017,2]
[421143450,1777161089587,-150.0,0.00017,2]
[421143451,1777161089599,-150.0,0.00017,2]
[421143452,1777161089610,-150.0,0.00017,2]
[421143453,1777161089622,-289.74222856,0.00017,2]
[421143454,1777161089634,-1380692.53780324,0.00017,2]
[421143455,1777161089646,-160.0,0.00017,7]
[421143456,1777161089658,-162.24807931,0.00017,7]
[421143457,1777161089669,-350.0,0.00017,2]
[421143458,1777161089680,-5800.0,0.00017006,2]
[421143459,1777161089693,-5800.0,0.00017014,2]
[421143460,1777161089704,-5800.0,0.00017023,2]
[421143461,1777161089719,-5800.0,0.00017031,2]
[421143462,1777161089732,-5121.85954688,0.0001704,2]
[421143463,1777161089743,-5800.0,0.0001704,2]
[421143464,1777161089754,-5608.28901918,0.0001704,2]
[421143465,1777161089766,-1121.65780384,0.0001704,2]
[421143466,1777161089777,-592.72,0.000171,2]
[421143467,1777161089788,-5362.98,0.000171,2]
[421143468,1777161089799,-207.0,0.00017133,2]
[421143469,1777161089810,-159.0,0.00017201,3]
[421143470,1777161089822,-1307.1,0.0001726,2]
[421143471,1777161089832,-550.0,0.0001726,2]
[421143472,1777161089844,-564.57820314,0.00017321,2]
[421143473,1777161089855,-505.0,0.00017358,5]
[421143474,1777161089866,-150.0,0.00017369,2]
[421143475,1777161089878,-150.0,0.00017369,2]
[421143476,1777161089889,-150.0,0.00017369,2]
[421143477,1777161089900,-150.0,0.00017369,2]
[421143478,1777161089910,-150.0,0.00017369,2]
[421143479,1777161089921,-150.0,0.00017369,2]
[421143480,1777161089932,-150.0,0.00017369,2]
[421143481,1777161089942,-150.0,0.00017369,2]
[421143482,1777161089953,-226.0,0.00017369,2]
[421143483,1777161089964,-636.9,0.0001739,2]
[421143484,1777161089976,-1000.0,0.00017451,2]
[421143485,1777161089987,-1000.0,0.00017451,2]
[421143486,1777161089999,-1000.0,0.00017453,2]
[421143487,1777161090010,-190.0,0.00017454,3]
[421143488,1777161090021,-1000.0,0.00017454,2]
[421143489,1777161090032,-200.0,0.00017458,2]
[421143490,1777161090043,-200.0,0.00017458,2]
[421143491,1777161090054,-200.0,0.00017458,2]
[421143492,1777161090065,-200.0,0.00017458,2]
[421143493,1777161090076,-200.0,0.00017458,2]
[421143494,1777161090087,-200.0,0.00017458,2]
[421143495,1777161090103,-200.0,0.00017458,2]
[421143496,1777161090115,-311.0,0.00017458,2]
[421143497,1777161090126,-150.0,0.00017458,2]
[421143498,1777161090137,-150.0,0.00017458,2]
[421143499,1777161090148,-266.0,0.00017458,2]
[421143500,1777161090159,-150.0,0.00017458,2]
[421143501,1777161090170,-150.0,0.00017458,2]
[421143502,1777161090181,-150.0,0.00017458,2]
[421143503,1777161090192,-214.0,0.00017458,2]
[421143504,1777161090203,-1000.0,0.00017458,2]
[421143505,1777161090214,-1000.0,0.00017459,2]
[421143506,1777161090226,-1000.0,0.00017461,2]
[421143507,1777161090237,-1000.0,0.00017463,2]
[421143508,1777161090248,-1000.0,0.00017465,2]
[421143509,1777161090259,-1000.0,0.00017466,2]
[421143510,1777161090271,-1000.0,0.00017469,2]
[421143511,1777161090282,-1000.0,0.00017469,2]
[421143512,1777161090294,-1000.0,0.00017472,2]
[421143513,1777161090304,-1000.0,0.00017477,2]
[421143514,1777161090315,-1000.0,0.0001748,2]
[421143515,1777161090327,-1000.0,0.0001749,2]
[421143516,1777161090337,-1000.0,0.00017494,2]
[421143517,1777161090348,-150.0,0.00017496,2]
[421143518,1777161090359,-150.0,0.00017496,2]
[421143519,1777161090369,-150.0,0.00017496,2]
[421143520,1777161090379,-150.0,0.00017496,2]
[421143521,1777161090390,-150.0,0.00017496,2]
[421143522,1777161090400,-250.0,0.00017496,2]
[421143523,1777161090410,-2699.8,0.000175,2]
[421143524,1777161090420,-1905.71,0.000175,2]
[421143525,1777161090431,-1000.0,0.00017501,2]
[421143526,1777161090441,-1000.0,0.00017511,2]
[421143527,1777161090452,-797.89471837,0.00017513,2]
[421143528,1777161090462,-1000.0,0.00017514,2]
[421143529,1777161090473,-1000.0,0.00017515,2]
[421143530,1777161090484,-1000.0,0.00017517,2]
[421143531,1777161090498,-1000.0,0.00017527,2]
[421143532,1777161090509,-1000.0,0.00017528,2]
[421143533,1777161090519,-1000.0,0.00017532,2]
[421143534,1777161090530,-1000.0,0.00017532,2]
[421143535,1777161090540,-1000.0,0.00017533,2]
[421143536,1777161090552,-1307.1,0.00017534,2]
[421143537,1777161090562,-150.0,0.00017534,2]
[421143538,1777161090572,-1500.0,0.00017534,2]
[421143539,1777161090583,-1500.0,0.00017534,2]
[421143540,1777161090593,-1500.0,0.00017534,2]
[421143541,1777161090604,-1500.0,0.00017534,2]
[421143542,1777161090614,-1500.0,0.00017534,2]
[421143543,1777161090625,-1500.0,0.00017534,2]
[421143544,1777161090635,-1500.0,0.00017534,2]
[421143545,1777161090647,-1428.3516754,0.00017534,2]
[421143546,1777161090657,-1500.0,0.00017534,2]
[421143547,1777161090667,-1500.0,0.00017534,2]
[421143548,1777161090679,-1500.0,0.00017534,2]
[421143549,1777161090689,-1500.0,0.00017534,2]
[421143550,1777161090700,-1500.0,0.00017534,2]
[421143551,1777161090710,-1500.0,0.00017534,2]
[421143552,1777161090721,-1500.0,0.00017534,2]
[421143553,1777161090732,-1500.0,0.00017534,2]
[421143554,1777161090743,-1500.0,0.00017534,2]
[421143555,1777161090753,-1500.0,0.00017534,2]
[421143556,1777161090764,-1500.0,0.00017534,2]
[421143557,1777161090774,-1500.0,0.00017534,2]
[421143558,1777161090785,-1532.10853237,0.00017534,2]
[421143559,1777161090796,-1500.0,0.00017534,2]
[421143560,1777161090807,-1500.0,0.00017534,2]
[421143561,1777161090818,-1500.0,0.00017534,2]
[421143562,1777161090829,-1500.0,0.00017534,2]
[421143563,1777161090839,-1500.0,0.00017534,2]
[421143564,1777161091060,-1001.19758639,0.00017534,2]
[421143565,1777161091071,-1500.0,0.00017534,2]
[421143566,1777161091081,-1104.80425311,0.00017534,2]
[421143567,1777161091092,-1000.0,0.00017535,2]
[421143568,1777161091102,-1000.0,0.00017536,2]
[421143569,1777161091113,-1000.0,0.00017536,2]
[421143570,1777161091124,-1000.0,0.00017537,2]
[421143571,1777161091135,-1000.0,0.00017538,2]
[421143572,1777161091155,-1000.0,0.00017539,2]
[421143573,1777161091169,-1000.0,0.00017539,2]
[421143574,1777161091180,-1000.0,0.00017539,2]
[421143575,1777161091190,-1000.0,0.00017542,2]
[421143576,1777161091201,-1000.0,0.00017543,2]
[421143577,1777161091212,-1000.0,0.00017544,2]
[421143578,1777161091222,-1000.0,0.00017549,2]
[421143579,1777161091233,-1000.0,0.00017552,2]
[421143580,1777161091244,-1000.0,0.00017552,2]
[421143581,1777161091255,-1000.0,0.00017554,2]
[421143582,1777161091566,-1000.0,0.00017555,2]
[421143583,1777161091577,-1000.0,0.00017561,2]
[421143584,1777161091587,-1000.0,0.00017563,2]
[421143585,1777161091597,-1000.0,0.00017565,2]
[421143586,1777161091608,-1000.0,0.00017566,2]
[421143587,1777161091618,-1000.0,0.0001757,2]
[421143588,1777161091629,-1000.0,0.00017574,2]
[421143589,1777161091638,-1000.0,0.00017582,2]
[421143590,1777161091648,-1000.0,0.00017584,2]
[421143591,1777161091658,-1000.0,0.00017585,2]
[421143592,1777161091668,-1000.0,0.00017587,2]
[421143593,1777161091678,-1000.0,0.00017589,2]
[421143594,1777161091688,-1000.0,0.0001759,2]
[421143595,1777161091698,-1000.0,0.00017591,2]
[421143596,1777161091707,-1000.0,0.00017594,2]
[421143597,1777161091717,-1000.0,0.00017596,2]
[421143598,1777161091727,-2664.73,0.000176,2]
[421143599,1777161091736,-3231.55,0.000176,2]
[421143600,1777161091745,-1000.0,0.0001761,2]
[421143601,1777161091755,-1000.0,0.00017618,2]
[421143602,1777161091765,-1000.0,0.0001762,2]
[421143603,1777161091775,-1000.0,0.0001762,2]
[421143604,1777161091785,-1000.0,0.00017621,2]
[421143605,1777161091795,-1000.0,0.00017624,2]
[421143606,1777161091805,-1000.0,0.00017625,2]
[421143607,1777161091815,-1000.0,0.00017626,2]
[421143608,1777161091825,-1000.0,0.00017635,2]
[421143609,1777161091835,-1000.0,0.00017639,2]
[421143610,1777161091846,-150.0,0.00017641,2]
[421143611,1777161091856,-150.0,0.00017641,2]
[421143612,1777161091865,-150.0,0.00017641,2]
[421143613,1777161091875,-291.0,0.00017641,2]
[421143614,1777161091884,-1000.0,0.00017645,2]
[421143615,1777161091894,-1000.0,0.00017648,2]
[421143616,1777161091905,-1000.0,0.0001765,2]
[421143617,1777161091915,-1000.0,0.00017652,2]
[421143618,1777161091924,-1000.0,0.00017655,2]
[421143619,1777161091934,-1000.0,0.00017657,2]
[421143620,1777161091944,-1000.0,0.00017661,2]
[421143621,1777161091953,-1000.0,0.00017662,2]
[421143622,1777161091963,-1000.0,0.00017668,2]
[421143623,1777161091973,-1000.0,0.00017675,2]
[421143624,1777161091982,-1000.0,0.00017675,2]
[421143625,1777161091991,-1378.85760204,0.00017679,36]
[421143626,1777161092001,-1000.0,0.00017681,2]
[421143627,1777161092010,-1000.0,0.00017686,2]
[421143628,1777161092019,-6033.0,0.00017688,2]
[421143629,1777161092029,-1000.0,0.00017689,2]
[421143630,1777161092039,-1000.0,0.00017697,2]
[421143631,1777161092048,-1000.0,0.00017698,2]
[421143632,1777161092057,-1000.0,0.00017698,2]
[421143633,1777161092068,-1000.0,0.00017698,2]
[421143634,1777161092077,-1000.0,0.00017698,2]
[421143635,1777161092087,-1000.0,0.00017699,2]
[421143636,1777161092096,-1000.0,0.00017701,2]
[421143637,1777161092106,-232.0,0.00017702,2]
[421143638,1777161092115,-1244.0,0.00017702,2]
[421143639,1777161092125,-552.0,0.00017702,2]
[421143640,1777161092135,-459.0,0.00017702,2]
[421143641,1777161092145,-1000.0,0.00017704,2]
[421143642,1777161092155,-1000.0,0.00017706,2]
[421143643,1777161092165,-1000.0,0.00017707,2]
[421143644,1777161092175,-1000.0,0.00017708,2]
[421143645,1777161092184,-1000.0,0.0001771,2]
[421143646,1777161092194,-1000.0,0.00017712,2]
[421143647,1777161092203,-1000.0,0.00017718,2]
[421143648,1777161092213,-150.0,0.00017753,2]
[421143649,1777161092223,-150.0,0.00017753,2]
[421143650,1777161092233,-150.0,0.00017753,2]
[421143651,1777161092242,-199.0,0.00017753,2]
[421143652,1777161092252,-150.0,0.00017753,2]
[421143653,1777161092262,-150.0,0.00017753,2]
[421143654,1777161092271,-150.0,0.00017753,2]
[421143655,1777161092281,-150.0,0.00017753,2]
[421143656,1777161092291,-158.0,0.00017753,2]
[421143657,1777161092300,-150.0,0.00017753,2]
[421143658,1777161092310,-260.0,0.00017753,2]
[421143659,1777161092320,-150.0,0.0001778,3]
[421143660,1777161092330,-3620.2,0.000178,2]
[421143661,1777161092339,-889.07,0.00017808,2]
[421143662,1777161092349,-1481.79,0.00017808,2]
[421143663,1777161092359,-185.14,0.00017808,2]
[421143664,1777161092368,-185.14,0.00017808,2]
[421143665,1777161092378,-1307.1,0.00017808,2]
[421143666,1777161092387,-650.0,0.00017808,2]
[421143667,1777161092398,-308.24412857,0.000179,7]
[421143668,1777161092407,-10012.0,0.00018,2]
[421143669,1777161092417,-110452.33510691,0.00018,2]
[421143670,1777161092427,-1595.0,0.00018,5]
[421143671,1777161092436,-1889.63956351,0.00018,2]
[421143672,1777161092446,-1920.4389972,0.00018,2]
[421143673,1777161092455,-200.0,0.00018,2]
[421143674,1777161092465,-564.57820314,0.00018042,7]
[421143675,1777161092475,-150.0,0.00018049,2]
[421143676,1777161092484,-150.0,0.00018049,2]
[421143677,1777161092494,-150.0,0.00018049,2]
[421143678,1777161092504,-150.0,0.00018049,2]
[421143679,1777161092514,-150.0,0.00018049,2]
[421143680,1777161092523,-150.0,0.00018049,2]
[421143681,1777161092533,-186.0,0.00018049,2]
[421143682,1777161092542,-1307.1,0.00018082,2]
[421143683,1777161092552,-150.0,0.00018082,2]
[421143684,1777161092562,-2000.0,0.00018082,2]
[421143685,1777161092572,-2000.0,0.00018082,2]
[421143686,1777161092582,-1238.90946405,0.00018082,2]
[421143687,1777161092591,-1998.15926998,0.00018082,2]
[421143688,1777161092601,-2000.0,0.00018082,2]
[421143689,1777161092610,-749.33220307,0.00018082,2]
[421143690,1777161092621,-2000.0,0.00018082,2]
[421143691,1777161092631,-213.14316467,0.00018082,2]
[421143692,1777161092641,-2000.0,0.00018082,2]
[421143693,1777161092651,-2000.0,0.00018082,2]
[421143694,1777161092660,-2000.0,0.00018082,2]
[421143695,1777161092671,-2000.0,0.00018082,2]
[421143696,1777161092680,-2000.0,0.00018082,2]